bitfinex-derivatives/quotes_BTCF0:USTF0_20240820
["timestamp","ask_amount","ask_price","bid_price","bid_amount"]
[1724131301471,2.00440329,61259.0,61258.0,0.0002449]
[1724131301674,2.00440329,61259.0,61247.0,0.3608]
[1724131301675,0.84091224,61259.0,61246.0,0.04806659]
[1724131301870,0.84091224,61259.0,61251.0,0.081586]
[1724131302072,3.77,61258.0,61251.0,0.081586]
[1724131302379,3.77,61258.0,61251.0,0.04806659]
[1724131302577,3.77,61258.0,61250.0,0.04806659]
[1724131302578,0.3608,61254.0,61250.0,0.04806659]
[1724131302780,0.3608,61254.0,61253.0,0.081584]
[1724131302980,0.84091224,61254.0,61253.0,0.081584]
[1724131304182,0.48011224,61254.0,61253.0,0.081584]
[1724131304675,0.0002449,61261.0,61257.0,0.081579]
[1724131304885,0.0564,61276.0,61260.0,0.794975]
[1724131305070,0.48011224,61276.0,61266.0,0.40882352]
[1724131305270,3.77,61275.0,61272.0,0.081559]
[1724131305676,4.25011224,61275.0,61272.0,0.081559]
[1724131306187,4.25011224,61275.0,61273.0,0.081557]
[1724131307384,4.25011224,61275.0,61268.0,0.081564]
[1724131307385,0.3608,61274.0,61268.0,0.081564]
[1724131307876,0.84091224,61274.0,61268.0,0.081564]
[1724131308278,0.84091224,61274.0,61267.0,0.0002449]
[1724131308479,0.3608,61269.0,61267.0,0.0002449]
[1724131308786,0.08156,61271.0,61267.0,0.0002449]
[1724131309083,0.56167224,61271.0,61267.0,0.0002449]
[1724131309485,0.48011224,61271.0,61267.0,0.0002449]
[1724131309781,0.48011224,61271.0,61269.0,0.081562]
[1724131310375,0.3608,61274.0,61273.0,0.081557]
[1724131310574,0.84091224,61274.0,61273.0,0.081557]
[1724131311576,0.84091224,61274.0,61268.0,0.3608]
[1724131311885,0.84091224,61274.0,61269.0,0.081561]
[1724131312576,0.84091224,61274.0,61268.0,0.3608]
[1724131312777,0.84091224,61274.0,61273.0,0.081557]
[1724131313388,0.48011224,61274.0,61273.0,0.081557]
[1724131313575,3.77,61275.0,61274.0,0.081556]
[1724131313781,3.77,61275.0,61274.0,0.434156]
[1724131315791,3.77,61275.0,61274.0,0.081556]
[1724131315792,4.25011224,61275.0,61274.0,0.081556]
[1724131316379,4.61091224,61275.0,61269.0,0.081563]
[1724131317189,0.3608,61270.0,61263.0,0.04802352]
[1724131317386,0.3608,61270.0,61255.0,0.04797319]
[1724131317387,0.081575,61260.0,61255.0,0.04797319]
[1724131317590,0.3608,61257.0,61248.0,0.40877319]
[1724131317896,0.3608,61257.0,61248.0,0.3608]
[1724131318086,0.77686301,61257.0,61248.0,0.3608]
[1724131318282,0.77686301,61257.0,61248.0,0.44239]
[1724131318582,0.77686301,61257.0,61246.0,0.00020763]
[1724131318797,0.3608,61249.0,61246.0,0.00020763]
[1724131319191,0.77686301,61249.0,61246.0,0.00020763]
[1724131320597,0.41606301,61249.0,61246.0,0.00020763]
[1724131321187,0.081591,61248.0,61246.0,0.00020763]
[1724131321491,0.41606301,61249.0,61246.0,0.00020763]
[1724131321684,0.41606301,61249.0,61247.0,0.081592]
[1724131321889,0.3608,61251.0,61246.0,0.35280763]
[1724131321890,0.3608,61251.0,61250.0,0.081588]
[1724131322808,3.7702449,61259.0,61249.0,0.3608]
[1724131323007,0.0002449,61259.0,61255.0,0.3608]
[1724131323200,0.0002449,61259.0,61257.0,0.081578]
[1724131323401,0.0002449,61259.0,61258.0,0.04797319]
[1724131323598,0.0002449,61259.0,61258.0,0.04801027]
[1724131323798,0.0002449,61259.0,61257.0,0.081578]
[1724131324911,0.41630791,61259.0,61257.0,0.081578]
[1724131325101,0.0002449,61259.0,61257.0,0.081578]
[1724131325299,0.081578,61258.0,61253.0,0.3526]
[1724131325708,0.49764101,61258.0,61253.0,0.3526]
[1724131327307,0.41606301,61258.0,61255.0,0.081581]
[1724131327507,0.41606301,61258.0,61252.0,0.3608]
[1724131328211,0.0002449,61259.0,61252.0,0.3608]
[1724131328212,0.0002449,61259.0,61257.0,0.3608]
[1724131328409,0.41630791,61259.0,61257.0,0.3608]
[1724131328610,0.0002449,61259.0,61257.0,0.3608]
[1724131329511,0.0002449,61259.0,61258.0,0.081577]
[1724131330022,0.0002449,61259.0,61258.0,0.10707953]
[1724131330204,0.0002449,61259.0,61258.0,0.10707925]
[1724131330402,0.0002449,61259.0,61258.0,0.081577]
[1724131331008,0.0002449,61259.0,61258.0,0.12957284]
[1724131331207,0.0002449,61259.0,61258.0,0.081577]
[1724131332614,0.0002449,61259.0,61258.0,0.12957308]
[1724131333114,0.0002449,61259.0,61258.0,0.15507554]
[1724131333520,0.0002449,61259.0,61258.0,0.081577]
[1724131333521,0.41630791,61259.0,61258.0,0.081577]
[1724131333907,0.41630791,61259.0,61258.0,0.15507572]
[1724131334218,0.49788391,61259.0,61253.0,0.04799608]
[1724131334522,0.49788391,61259.0,61258.0,0.442377]
[1724131334523,0.41630791,61259.0,61258.0,0.442377]
[1724131334707,0.41630791,61259.0,61258.0,0.46788025]
[1724131334912,0.0002449,61259.0,61258.0,0.46788025]
[1724131335313,0.0002449,61259.0,61258.0,0.95760025]
[1724131335914,0.0002449,61259.0,61258.0,0.95759909]
[1724131336518,0.0002449,61259.0,61258.0,0.99606126]
[1724131336716,0.0002449,61259.0,61258.0,1.02156318]
[1724131337121,0.3608,61275.0,61258.0,1.02156318]
[1724131337122,0.3608,61285.0,61258.0,2.21662181]
[1724131337426,0.4751,61285.0,61284.0,0.081543]
[1724131337727,0.081543,61284.0,61279.0,0.081549]
[1724131338117,0.49760601,61284.0,61279.0,0.081549]
[1724131338618,0.49760601,61284.0,61276.0,0.3608]
[1724131338619,0.081546,61282.0,61276.0,0.3608]
[1724131338826,0.081546,61282.0,61277.0,0.02549546]
[1724131339028,0.081546,61282.0,61276.0,0.3608]
[1724131339029,0.41606301,61282.0,61276.0,0.3608]
[1724131339511,0.41606301,61282.0,61279.0,0.081549]
[1724131340323,0.41606301,61282.0,61280.0,0.081548]
[1724131340722,0.41606301,61282.0,61276.0,0.3608]
[1724131341020,0.41606301,61282.0,61275.0,0.01607078]
[1724131341822,0.41606301,61282.0,61275.0,0.0002449]
[1724131342324,0.41606301,61282.0,61275.0,0.0817999]
[1724131342823,0.41606301,61282.0,61276.0,0.081553]
[1724131343222,0.41606301,61282.0,61277.0,0.081552]
[1724131343620,0.3608,61284.0,61283.0,0.081544]
[1724131343931,0.0002449,61288.0,61287.0,0.081539]
[1724131344232,4.18630791,61288.0,61287.0,0.081539]
[1724131347624,3.7702449,61288.0,61287.0,0.081539]
[1724131348325,0.0002449,61288.0,61287.0,0.081539]
[1724131348525,0.0002449,61288.0,61287.0,0.363439]
[1724131348918,0.0002449,61288.0,61287.0,0.38892967]
[1724131349329,0.4751,61296.0,61295.0,0.081528]
[1724131350425,0.89116301,61296.0,61295.0,0.081528]
[1724131351027,0.4751,61296.0,61295.0,0.081528]
[1724131352725,0.4751,61296.0,61293.0,0.6427]
[1724131352726,0.4753449,61302.0,61301.0,0.08152]
[1724131354827,0.4753449,61302.0,61301.0,0.57092]
[1724131355931,0.4753449,61302.0,61301.0,0.58598676]
[1724131356726,0.4753449,61302.0,61301.0,0.09658676]
[1724131356918,0.89140791,61302.0,61301.0,0.01506676]
[1724131357133,0.89140791,61302.0,61301.0,0.08152]
[1724131357530,4.2453449,61302.0,61301.0,0.36342]
[1724131359522,4.2453449,61302.0,61301.0,0.08152]
[1724131360129,5.02220791,61302.0,61301.0,0.08152]
[1724131360927,4.66140791,61302.0,61301.0,0.08152]
[1724131361128,4.2453449,61302.0,61301.0,0.08152]
[1724131362126,4.2453449,61302.0,61301.0,0.57092]
[1724131362326,0.4753449,61302.0,61301.0,0.57092]
[1724131362519,0.4753449,61302.0,61301.0,0.93172]
[1724131363625,0.89140791,61302.0,61301.0,0.44232]
[1724131363825,0.89140791,61302.0,61301.0,0.08152]
[1724131364321,4.66140791,61302.0,61301.0,0.08152]
[1724131366131,5.02220791,61302.0,61300.0,0.01471533]
[1724131366436,5.02220791,61302.0,61292.0,0.3608]
[1724131367623,5.02220791,61302.0,61292.0,0.37602754]
[1724131367821,5.02220791,61302.0,61301.0,0.08152]
[1724131368328,4.66140791,61302.0,61301.0,0.08152]
[1724131368730,4.2453449,61302.0,61301.0,0.08152]
[1724131369123,4.66140791,61302.0,61301.0,0.08152]
[1724131369929,4.66140791,61302.0,61301.0,0.096841]
[1724131370534,0.4753449,61302.0,61301.0,0.096841]
[1724131370838,0.4753449,61302.0,61301.0,1.0925719]
[1724131370839,0.17184542,61302.0,61301.0,1.0925719]
[1724131371133,0.08654442,61302.0,61301.0,1.028561]
[1724131371544,0.08654442,61302.0,61301.0,1.178561]
[1724131371734,0.00024469,61308.0,61307.0,0.081512]
[1724131371937,0.00024469,61308.0,61307.0,0.794712]
[1724131373036,3.77,61319.0,61317.0,0.081498]
[1724131373238,4.18606301,61319.0,61317.0,0.081498]
[1724131373630,4.18606301,61319.0,61318.0,0.081498]
[1724131374431,0.00024469,61325.0,61324.0,0.08149]
[1724131374634,0.00024469,61325.0,61324.0,0.79469]
[1724131374831,0.00024469,61325.0,61324.0,1.28389]
[1724131376132,0.04869382,61352.0,61344.0,0.081462]
[1724131376449,0.04869382,61352.0,61319.0,0.081496]
[1724131376450,0.51046301,61355.0,61347.0,0.081458]
[1724131376939,0.49751201,61355.0,61347.0,0.081458]
[1724131377439,0.08145,61354.0,61345.0,0.00024469]
[1724131377641,0.41606301,61355.0,61345.0,0.00024469]
[1724131377843,0.081457,61349.0,61345.0,0.00024469]
[1724131378145,0.081458,61348.0,61345.0,0.00024469]
[1724131378641,0.081458,61348.0,61335.0,0.3608]
[1724131378642,0.081474,61336.0,61335.0,0.3608]
[1724131378840,0.3608,61336.0,61319.0,0.04775461]
[1724131379057,0.3608,61331.0,61318.0,0.40855461]
[1724131379339,3.77,61330.0,61318.0,0.37558428]
[1724131379745,3.9932251,61330.0,61318.0,0.37582897]
[1724131379938,0.06483781,61320.0,61319.0,0.081496]
[1724131380840,0.06483781,61320.0,61318.0,0.37582897]
[1724131380841,0.06474935,61321.0,61318.0,0.37582897]
[1724131381146,3.77024469,61330.0,61321.0,0.081494]
[1724131381147,0.08126824,61327.0,61321.0,0.081494]
[1724131381335,0.08126824,61324.0,61321.0,0.081494]
[1724131381643,0.08126824,61327.0,61323.0,0.08149]
[1724131381850,0.08126824,61326.0,61324.0,0.081489]
[1724131382032,3.77024469,61330.0,61324.0,0.081489]
[1724131382033,0.08126824,61329.0,61325.0,0.3608]
[1724131382232,0.00024469,61330.0,61326.0,0.081487]
[1724131382439,0.00024469,61330.0,61328.0,0.081483]
[1724131382741,0.2232251,61330.0,61328.0,0.081483]
[1724131383139,0.06498918,61330.0,61328.0,0.081483]
[1724131383442,0.28796959,61330.0,61328.0,0.081483]
[1724131383845,0.2232251,61330.0,61328.0,0.081483]
[1724131384833,0.00024469,61330.0,61328.0,0.081483]
[1724131385244,0.2232251,61330.0,61328.0,0.081483]
[1724131385435,0.28796959,61330.0,61328.0,0.081483]
[1724131385641,0.2232251,61330.0,61328.0,0.081483]
[1724131386942,0.28796959,61330.0,61328.0,0.081483]
[1724131387345,0.2232251,61330.0,61328.0,0.081483]
[1724131387540,0.28796959,61330.0,61328.0,0.081483]
[1724131387736,0.2232251,61330.0,61328.0,0.081483]
[1724131387945,0.2232251,61330.0,61324.0,0.3524]
[1724131388645,0.081483,61329.0,61324.0,0.3524]
[1724131388844,0.2232251,61330.0,61327.0,0.081485]
[1724131389343,0.7123851,61330.0,61321.0,0.081493]
[1724131389543,0.7123851,61330.0,61318.0,0.00024469]
[1724131389544,0.3608,61322.0,61318.0,0.00024469]
[1724131389749,0.442293,61322.0,61318.0,0.00024469]
[1724131390049,0.00024469,61330.0,61320.0,0.3524]
[1724131390348,0.081483,61329.0,61322.0,0.081492]
[1724131390532,3.77,61328.0,61322.0,0.081492]
[1724131390738,3.77,61328.0,61324.0,0.081489]
[1724131390945,3.77,61328.0,61318.0,0.00024469]
[1724131390946,0.3608,61326.0,61318.0,0.00024469]
[1724131391443,0.58378041,61326.0,61318.0,0.00024469]
[1724131391633,0.58378041,61326.0,61324.0,0.081489]
[1724131392249,0.3608,61326.0,61324.0,0.081489]
[1724131392541,0.22298041,61326.0,61324.0,0.081489]
[1724131392942,0.00024469,61330.0,61329.0,0.081483]
[1724131393135,0.2232251,61330.0,61329.0,0.794683]
[1724131393534,0.2232251,61330.0,61329.0,0.433883]
[1724131394135,0.00024469,61330.0,61329.0,0.433883]
[1724131394742,0.00024469,61330.0,61329.0,0.45935397]
[1724131394946,0.04882381,61330.0,61329.0,0.45935446]
[1724131395141,0.00024469,61330.0,61329.0,0.45935446]
[1724131395345,0.2232251,61330.0,61329.0,0.45935446]
[1724131395737,0.2232251,61330.0,61329.0,0.433883]
[1724131395943,0.28802405,61330.0,61329.0,0.45935718]
[1724131396143,0.2232251,61330.0,61329.0,0.45935718]
[1724131396344,4.05802405,61330.0,61329.0,0.794683]
[1724131396648,3.9932251,61330.0,61329.0,0.433883]
[1724131396850,3.9932251,61330.0,61322.0,0.3524]
[1724131396851,4.96365334,61330.0,61322.0,0.3524]
[1724131397046,0.06483515,61326.0,61322.0,0.3524]
[1724131397248,0.06483515,61326.0,61323.0,0.081491]
[1724131397452,0.22298041,61326.0,61323.0,0.081491]
[1724131397743,0.22298041,61326.0,61318.0,0.37583361]
[1724131397744,0.66504865,61326.0,61318.0,0.36104469]
[1724131397952,0.06488374,61320.0,61318.0,0.36104469]
[1724131398141,0.06488374,61319.0,61318.0,0.36104469]
[1724131398538,0.22298041,61319.0,61318.0,0.36104469]
[1724131400149,0.06492472,61322.0,61321.0,0.081494]
[1724131400353,0.08126824,61328.0,61326.0,0.081487]
[1724131400651,3.9932251,61330.0,61326.0,0.081487]
[1724131401042,0.08119767,61327.0,61326.0,0.081487]
[1724131401245,0.02641528,61329.0,61326.0,0.081487]
[1724131401445,0.22298041,61329.0,61327.0,0.081485]
[1724131401845,0.09726219,61328.0,61327.0,0.081485]
[1724131402044,0.24939592,61328.0,61327.0,0.081485]
[1724131402245,0.22298041,61328.0,61327.0,0.081485]
[1724131402647,0.22298041,61328.0,61323.0,0.3608]
[1724131402848,0.09749707,61327.0,61324.0,0.081489]
[1724131403048,0.22298041,61328.0,61324.0,0.081489]
[1724131403256,0.3608,61326.0,61324.0,0.081489]
[1724131403444,0.3608,61326.0,61322.0,0.3524]
[1724131403646,0.58378041,61326.0,61322.0,0.3524]
[1724131404657,0.58378041,61326.0,61321.0,0.09639426]
[1724131405250,0.22298041,61326.0,61321.0,0.14419245]
[1724131405661,0.22298041,61326.0,61325.0,0.081488]
[1724131406156,0.71218041,61326.0,61325.0,0.081488]
[1724131406551,0.22298041,61326.0,61325.0,0.081488]
[1724131408162,0.22298041,61326.0,61325.0,0.14516082]
[1724131408361,0.22298041,61326.0,61325.0,0.081488]
[1724131408657,3.77024469,61330.0,61329.0,0.081483]
[1724131408863,0.2232251,61330.0,61329.0,0.49030782]
[1724131409065,0.2232251,61330.0,61329.0,0.081483]
[1724131409256,3.9932251,61330.0,61329.0,0.442283]
[1724131409757,3.9932251,61330.0,61329.0,0.12950782]
[1724131410064,3.9932251,61330.0,61329.0,0.081483]
[1724131411053,3.9932251,61330.0,61329.0,0.49030782]
[1724131411261,3.9932251,61330.0,61329.0,0.442283]
[1724131411558,0.2232251,61330.0,61329.0,0.442283]
[1724131411764,0.2232251,61330.0,61329.0,0.5063161]
[1724131412163,0.00024469,61330.0,61329.0,0.53178926]
[1724131412959,0.00024469,61330.0,61329.0,0.5063161]
[1724131413161,0.00024469,61330.0,61329.0,0.46775626]
[1724131414059,0.00024469,61330.0,61329.0,0.48219832]
[1724131414463,0.2232251,61330.0,61329.0,0.53178878]
[1724131414768,0.2232251,61330.0,61329.0,0.46775626]
[1724131415456,0.2232251,61330.0,61321.0,0.08005082]
[1724131415457,0.4892,61329.0,61321.0,0.08005082]
[1724131415660,0.6426,61322.0,61309.0,0.04808102]
[1724131415956,4.4916,61310.0,61305.0,0.01436671]
[1724131416260,4.55671383,61310.0,61306.0,0.02548702]
[1724131416463,4.63822283,61310.0,61300.0,0.04809666]
[1724131416666,0.3608,61301.0,61299.0,0.04834135]
[1724131416869,0.3608,61301.0,61300.0,0.02548686]
[1724131417462,0.3608,61301.0,61299.0,0.04834135]
[1724131417665,0.3608,61301.0,61300.0,0.02548591]
[1724131417966,0.3608,61301.0,61300.0,0.10700691]
[1724131418166,0.3608,61301.0,61300.0,0.17107093]
[1724131418366,0.3608,61301.0,61300.0,0.10700691]
[1724131418573,0.3608,61301.0,61300.0,0.52337093]
[1724131418767,0.3608,61301.0,61300.0,0.45930691]
[1724131419066,0.3608,61301.0,61300.0,0.48181253]
[1724131419276,0.3608,61301.0,61300.0,0.45930545]
[1724131419460,0.3608,61301.0,61300.0,0.44862408]
[1724131419767,0.3608,61305.0,61304.0,0.081515]
[1724131419968,4.1308,61310.0,61304.0,0.081515]
[1724131421171,0.3608,61305.0,61304.0,0.081515]
[1724131423364,0.3608,61305.0,61300.0,0.36710308]
[1724131423660,0.3608,61305.0,61300.0,0.01480308]
[1724131423866,0.3608,61305.0,61299.0,0.00024469]
[1724131423867,0.08152,61301.0,61299.0,0.00024469]
[1724131424080,0.08152,61301.0,61299.0,0.01470372]
[1724131424368,3.77,61300.0,61299.0,0.00024469]
[1724131424565,0.3608,61303.0,61300.0,0.4894]
[1724131424765,0.00024469,61311.0,61309.0,0.081509]
[1724131424962,0.00024469,61311.0,61310.0,0.4002096]
[1724131425165,0.00024469,61311.0,61310.0,0.37778088]
[1724131425371,0.00024469,61311.0,61310.0,0.3523]
[1724131425672,0.00024469,61311.0,61310.0,0.37777988]
[1724131425970,0.00024469,61311.0,61310.0,0.42568948]
[1724131426169,0.00024469,61311.0,61310.0,0.37777988]
[1724131426969,0.00024469,61311.0,61310.0,0.42568948]
[1724131427377,0.00024469,61311.0,61310.0,0.37777988]
[1724131428069,0.00024469,61311.0,61310.0,0.02547988]
[1724131428268,0.00024469,61311.0,61304.0,0.4002096]
[1724131428470,0.00024469,61311.0,61305.0,0.02548208]
[1724131428669,0.3608,61307.0,61306.0,0.02548208]
[1724131428869,0.3608,61307.0,61306.0,0.02548323]
[1724131429071,0.3608,61307.0,61304.0,0.44860149]
[1724131429379,0.3608,61307.0,61305.0,0.02548254]
[1724131429563,0.3608,61307.0,61306.0,0.02548277]
[1724131429769,0.3608,61307.0,61305.0,0.081514]
[1724131429770,0.00024469,61311.0,61305.0,0.081514]
[1724131430067,0.3608,61306.0,61305.0,0.081514]
[1724131430980,0.3608,61306.0,61301.0,0.0479096]
[1724131431277,0.3608,61306.0,61302.0,0.02548322]
[1724131431478,0.3608,61306.0,61299.0,0.04815429]
[1724131431677,0.3608,61306.0,61301.0,0.02548374]
[1724131431877,0.3608,61306.0,61302.0,0.02548374]
[1724131432076,0.3608,61306.0,61304.0,0.081516]
[1724131432269,0.3608,61306.0,61304.0,0.433816]
[1724131432674,0.3608,61306.0,61305.0,0.02548345]
[1724131433181,0.3608,61306.0,61304.0,0.081516]
[1724131433479,0.3608,61306.0,61305.0,0.02548357]
[1724131433984,0.3608,61306.0,61304.0,0.081516]
[1724131434167,0.3608,61306.0,61305.0,0.081515]
[1724131435780,0.3608,61306.0,61300.0,0.01432308]
[1724131435974,0.3608,61301.0,61300.0,0.081521]
[1724131437481,4.1308,61301.0,61300.0,0.081521]
[1724131439477,4.1308,61301.0,61299.0,0.01459437]
[1724131440070,4.1308,61301.0,61297.0,0.081525]
[1724131440071,0.081533,61291.0,61290.0,0.00012846]
[1724131440273,0.3608,61291.0,61282.0,0.01442692]
[1724131440472,0.3608,61283.0,61280.0,0.081547]
[1724131440681,0.3608,61283.0,61280.0,0.09619723]
[1724131441071,0.3608,61281.0,61280.0,0.09619723]
[1724131441270,0.36092661,61281.0,61280.0,0.09619723]
[1724131441775,4.13092661,61281.0,61280.0,0.081547]
[1724131442179,3.77012661,61281.0,61280.0,0.081547]
[1724131444184,0.00012661,61281.0,61280.0,0.081547]
[1724131444384,0.3608,61283.0,61282.0,0.081545]
[1724131444584,0.00024469,61288.0,61287.0,0.081539]
[1724131444774,0.00024469,61288.0,61287.0,0.363439]
[1724131445378,0.00024469,61288.0,61287.0,0.41145215]
[1724131446081,0.00024469,61288.0,61287.0,0.363439]
[1724131446289,6.9e-07,61288.0,61287.0,0.42731704]
[1724131446593,6.9e-07,61288.0,61287.0,0.38892634]
[1724131446988,6.9e-07,61288.0,61287.0,0.47046492]
[1724131448885,6.9e-07,61288.0,61287.0,0.95994492]
[1724131449189,6.9e-07,61288.0,61287.0,1.32074492]
[1724131449891,6.9e-07,61288.0,61287.0,1.33552485]
[1724131450183,6.9e-07,61288.0,61287.0,1.76101025]
[1724131450386,6.9e-07,61288.0,61287.0,1.36101025]
[1724131450582,6.9e-07,61288.0,61287.0,1.88521976]
[1724131450983,6.9e-07,61288.0,61287.0,1.88521959]
[1724131451287,6.9e-07,61288.0,61287.0,1.88521493]
[1724131451485,6.9e-07,61288.0,61287.0,1.85972801]
[1724131451686,6.9e-07,61288.0,61287.0,1.88521324]
[1724131451887,0.3608,61301.0,61300.0,0.081521]
[1724131452484,0.3608,61301.0,61300.0,0.363421]
[1724131452683,0.3608,61306.0,61305.0,0.081515]
[1724131453183,4.1308,61306.0,61305.0,0.081515]
[1724131454382,4.1308,61306.0,61305.0,0.363415]
[1724131456194,4.1308,61306.0,61305.0,0.38889881]
[1724131456390,2.80103469,61312.0,61305.0,0.68294941]
[1724131456591,2.80103469,61312.0,61311.0,0.2819]
[1724131456788,2.80103469,61312.0,61311.0,0.38888782]
[1724131457493,6.57103469,61312.0,61311.0,0.38888782]
[1724131457695,6.57103469,61312.0,61311.0,0.43685669]
[1724131457884,6.57103469,61312.0,61311.0,0.363407]
[1724131458291,2.80103469,61312.0,61311.0,0.363407]
[1724131458599,2.80103469,61312.0,61311.0,0.38888596]
[1724131459092,2.80103469,61312.0,61311.0,0.363407]
[1724131459294,2.71720769,61312.0,61311.0,0.83119272]
[1724131459489,2.61014369,61312.0,61311.0,0.92063946]
[1724131459688,2.61014369,61312.0,61311.0,0.85667055]
[1724131459689,2.52338769,61312.0,61311.0,0.85667055]
[1724131460397,2.52338769,61312.0,61311.0,0.92056752]
[1724131460594,2.52338769,61312.0,61311.0,0.85667055]
[1724131461493,2.466321,61312.0,61311.0,0.85666803]
[1724131461690,0.63697123,61312.0,61311.0,2.04554943]
[1724131461891,2e-07,61312.0,61311.0,2.23666165]
[1724131462091,0.00081505,61328.0,61327.0,0.081486]
[1724131462290,0.00081505,61328.0,61327.0,0.3888622]
[1724131462487,0.00081505,61328.0,61327.0,0.41433391]
[1724131463294,0.00081505,61328.0,61327.0,0.3888622]
[1724131463987,0.00081505,61328.0,61327.0,0.43668748]
[1724131464392,0.00081505,61328.0,61327.0,0.40342]
[1724131464991,5e-08,61328.0,61327.0,1.02182754]
[1724131465204,5e-08,61328.0,61327.0,0.974066]
[1724131465404,0.0922,61342.0,61327.0,0.974066]
[1724131465405,0.3608,61351.0,61333.0,0.081478]
[1724131465701,0.3608,61360.0,61333.0,0.081478]
[1724131465702,0.081445,61358.0,61351.0,0.081453]
[1724131466004,0.081419,61378.0,61364.0,0.081436]
[1724131466201,0.081419,61378.0,61352.0,0.61471563]
[1724131466202,0.3608,61384.0,61373.0,0.2819]
[1724131466396,0.3608,61378.0,61373.0,0.2819]
[1724131466597,0.3608,61384.0,61376.0,0.3608]
[1724131466808,0.37420351,61384.0,61377.0,0.081418]
[1724131467297,0.3608,61384.0,61377.0,0.081418]
[1724131467698,0.3608,61384.0,61379.0,0.081416]
[1724131468004,0.04068391,61428.0,61405.0,0.3608]
[1724131468207,0.09749707,61447.0,61424.0,0.3608]
[1724131468208,0.3608,61431.0,61424.0,0.3608]
[1724131468504,0.58904,61434.0,61424.0,0.3608]
[1724131468706,0.3516,61433.0,61424.0,0.3608]
[1724131468906,0.83996,61433.0,61424.0,0.3608]
[1724131469115,4.25836,61432.0,61424.0,0.3608]
[1724131469602,0.48836,61431.0,61424.0,0.3608]
[1724131469805,0.48836,61431.0,61402.0,0.3516]
[1724131469806,0.3608,61425.0,61408.0,0.3608]
[1724131470104,0.081363,61420.0,61408.0,0.3608]
[1724131470294,0.06511383,61417.0,61408.0,0.3608]
[1724131470498,0.06511383,61417.0,61403.0,0.3608]
[1724131470499,0.3608,61409.0,61403.0,0.3608]
[1724131470907,0.48856,61408.0,61403.0,0.3608]
[1724131471109,0.48856,61408.0,61398.0,0.3608]
[1724131471301,0.3608,61404.0,61400.0,0.00024423]
[1724131471498,0.0932,61403.0,61398.0,0.3608]
[1724131471696,0.081399,61392.0,61358.0,0.3608]
[1724131471895,0.3608,61373.0,61366.0,0.081434]
[1724131472503,0.3608,61373.0,61363.0,0.3608]
[1724131472696,0.3608,61366.0,61363.0,0.00024423]
[1724131472899,0.00018274,61372.0,61364.0,0.081436]
[1724131473099,0.00018274,61372.0,61367.0,0.081432]
[1724131473499,0.00018274,61372.0,61368.0,0.48884]
[1724131473805,0.00018274,61372.0,61350.0,0.3608]
[1724131473806,0.7124,61369.0,61350.0,0.3608]
[1724131474107,0.3608,61358.0,61350.0,0.3608]
[1724131474901,0.00013254,61357.0,61350.0,0.3608]
[1724131475901,3.77,61356.0,61354.0,0.08145]
[1724131476106,3.77,61356.0,61351.0,0.48896]
[1724131476107,0.00024444,61360.0,61355.0,0.3608]
[1724131476310,0.00024444,61360.0,61355.0,0.7608]
[1724131476509,0.00024444,61360.0,61359.0,0.081443]
[1724131476805,0.00024444,61360.0,61355.0,0.3608]
[1724131477116,5.699e-05,61359.0,61355.0,0.3608]
[1724131477613,5.699e-05,61359.0,61354.0,0.081449]
[1724131477614,0.3608,61357.0,61354.0,0.081449]
[1724131477803,5.699e-05,61359.0,61356.0,0.3608]
[1724131478315,5.699e-05,61359.0,61357.0,0.48892]
[1724131478508,5.699e-05,61359.0,61356.0,0.36296]
[1724131478708,5.699e-05,61359.0,61357.0,0.2706]
[1724131479011,5.699e-05,61359.0,61356.0,0.84972]
[1724131479200,5.699e-05,61359.0,61357.0,0.48892]
[1724131479512,0.00024444,61360.0,61358.0,0.442244]
[1724131479513,4.3e-07,61360.0,61358.0,0.442244]
[1724131479707,4.3e-07,61360.0,61358.0,1.491164]
[1724131480012,4.3e-07,61360.0,61359.0,0.48892]
[1724131480514,4.3e-07,61360.0,61359.0,0.88892]
[1724131480718,4.3e-07,61360.0,61359.0,0.48892]
[1724131481012,4.3e-07,61360.0,61356.0,0.3608]
[1724131481316,4.3e-07,61360.0,61343.0,0.081463]
[1724131481317,4.1308,61357.0,61343.0,0.081463]
[1724131481607,0.3608,61344.0,61343.0,0.081463]
[1724131482008,0.3608,61344.0,61340.0,0.00013492]
[1724131482009,0.7216,61344.0,61340.0,0.00013492]
[1724131482313,3.851465,61343.0,61329.0,0.081482]
[1724131482509,0.3608,61332.0,61330.0,0.00024444]
[1724131482912,0.3608,61332.0,61330.0,0.08172544]
[1724131483306,0.00011794,61331.0,61330.0,0.08172544]
[1724131484603,9.4e-07,61331.0,61330.0,0.97088544]
[1724131485507,0.3608,61342.0,61341.0,0.081467]
[1724131486010,0.3608,61354.0,61349.0,0.081456]
[1724131486215,0.3608,61354.0,61352.0,0.081451]
[1724131486607,0.3608,61354.0,61334.0,0.3608]
[1724131486608,0.081471,61339.0,61327.0,0.04732807]
[1724131486808,0.3608,61340.0,61333.0,0.3516]
[1724131487013,0.3608,61340.0,61326.0,0.7124]
[1724131487214,0.00024444,61339.0,61327.0,0.00024444]
[1724131487615,0.00024444,61339.0,61337.0,0.081471]
[1724131488710,0.00024444,61339.0,61338.0,0.48908]
[1724131489012,0.3608,61340.0,61339.0,0.08147]
[1724131489926,0.3608,61340.0,61332.0,0.081478]
[1724131490117,0.3608,61340.0,61332.0,0.3516]
[1724131490313,0.3608,61340.0,61339.0,0.08147]
[1724131492621,0.00024444,61346.0,61339.0,0.08147]
[1724131492622,0.00024444,61346.0,61345.0,0.081462]
[1724131500927,0.00024444,61346.0,61343.0,0.04776469]
[1724131501232,0.00024444,61346.0,61343.0,0.04777454]
[1724131501233,0.3608,61344.0,61343.0,0.04777454]
[1724131501420,0.3608,61344.0,61340.0,0.14459987]
[1724131501616,0.3608,61344.0,61340.0,0.081468]
[1724131501820,0.3608,61344.0,61341.0,0.081467]
[1724131502329,0.3608,61344.0,61339.0,0.07656156]
[1724131502733,0.3608,61344.0,61343.0,0.081464]
[1724131504027,0.3608,61344.0,61340.0,0.06313187]
[1724131504028,1.24984,61344.0,61340.0,0.06313187]
[1724131504221,0.84988,61344.0,61339.0,0.04812904]
[1724131504423,0.84988,61344.0,61339.0,0.00024444]
[1724131504424,0.3608,61340.0,61339.0,0.00024444]
[1724131504934,0.84988,61340.0,61339.0,0.00024444]